bitfinex/quotes_ETHUSD_20250925
["timestamp","ask_amount","ask_price","bid_price","bid_amount"]
[1758781748948,0.001,4013.3,4013.2,9.44398105]
[1758781749131,0.001,4013.3,4013.2,11.8352672]
[1758781751914,0.001,4013.3,4013.2,20.5872672]
[1758781752140,0.001,4013.3,4013.2,10.20186328]
[1758781752425,0.001,4013.3,4013.2,15.77876328]
[1758781754053,0.001,4013.3,4013.2,6.95906328]
[1758781754259,0.001,4013.3,4013.2,8.90577713]
[1758781754561,0.001,4013.3,4013.2,9.14597713]
[1758781754852,0.001,4013.3,4013.2,8.90577713]
[1758781755172,0.001,4013.3,4013.2,11.90577713]
[1758781755322,0.001,4013.3,4013.2,5.49177713]
[1758781755518,0.001,4013.3,4013.2,13.04682232]
[1758781757049,0.001,4013.3,4013.2,6.63282232]
[1758781757249,0.001,4013.3,4013.2,13.06582232]
[1758781757450,0.001,4013.3,4013.2,6.65282232]
[1758781757852,0.001,4013.3,4013.2,13.06582232]
[1758781758052,0.001,4013.3,4013.2,10.98982232]
[1758781758354,0.001,4013.3,4013.2,13.06582232]
[1758781758749,0.001,4013.3,4013.2,10.06582232]
[1758781759519,0.2499,4013.3,4013.2,2.49177713]
[1758781759724,0.6874,4013.3,4013.2,6.82777713]
[1758781760555,0.6874,4013.3,4013.2,2.49177713]
[1758781760724,0.6874,4013.3,4013.2,6.82777713]
[1758781760925,0.6874,4013.3,4013.2,8.90377713]
[1758781761756,0.6874,4013.3,4013.2,2.49177713]
[1758781762058,0.6874,4013.3,4013.2,6.82777713]
[1758781764028,0.6874,4013.3,4013.2,2.49177713]
[1758781764335,0.6874,4013.3,4013.2,6.82777713]
[1758781766863,0.6874,4013.3,4013.2,2.49177713]
[1758781767069,0.6874,4013.3,4013.2,6.82677713]
[1758781767388,0.6874,4013.3,4012.6,0.002]
[1758781767574,0.6874,4013.3,4012.7,6.411]
[1758781767773,0.6864,4013.2,4013.1,2.49183922]
[1758781767981,1.07708906,4013.2,4013.1,2.49183922]
[1758781768179,1.07708906,4013.2,4013.1,6.82683922]
[1758781768376,0.39068906,4013.2,4013.1,6.82683922]
[1758781769024,0.63958906,4013.2,4013.1,6.82683922]
[1758781769191,1.07708906,4013.2,4013.1,6.82683922]
[1758781769485,0.39068906,4013.2,4013.1,7.7587149]
[1758781770192,0.25862498,4013.2,4013.1,7.7587149]
[1758781770493,0.001,4013.3,4013.2,2.49177713]
[1758781770689,0.001,4013.3,4012.6,0.002]
[1758781770875,0.4375,4013.2,4012.9,2.49190825]
[1758781771069,0.6864,4013.1,4013.0,4.334]
[1758781771269,0.6864,4013.1,4012.9,2.49190825]
[1758781771495,0.001,4013.3,4013.0,4.334]
[1758781771689,0.001,4013.3,4013.1,4.334]
[1758781772090,0.6864,4013.2,4013.1,6.82579633]
[1758781773198,0.001,4013.3,4013.0,2.49187942]
[1758781773371,0.001,4013.3,4013.1,4.334]
[1758781773570,0.6864,4013.2,4013.1,4.334]
[1758781774029,0.6864,4013.2,4013.0,2.49189818]
[1758781774314,0.001,4013.3,4012.8,2.49197479]
[1758781774504,0.29181632,4013.3,4012.6,0.002]
[1758781774699,0.02491715,4013.2,4012.8,4.334]
[1758781774900,0.6864,4013.1,4012.8,4.334]
[1758781775072,0.6864,4013.0,4012.8,4.334]
[1758781775382,0.6864,4012.9,4012.8,4.334]
[1758781776114,0.6864,4012.9,4012.6,0.002]
[1758781776316,2.49208762,4012.7,4012.6,0.002]
[1758781776685,3.17848762,4012.7,4012.6,0.002]
[1758781779314,7.51148762,4012.7,4012.6,0.002]
[1758781779814,7.6388288,4012.7,4012.6,0.002]
[1758781780024,10.6388288,4012.7,4012.6,0.002]
[1758781780417,3.0,4012.7,4012.6,0.002]
[1758781780660,0.2495,4013.1,4012.6,0.002]
[1758781781047,0.001,4013.2,4012.6,0.002]
[1758781781555,0.001,4013.2,4012.8,2.49202551]
[1758781781940,0.2495,4013.1,4012.7,2.49206987]
[1758781782254,0.6995,4013.1,4012.8,2.49202382]
[1758781782655,0.2495,4013.1,4012.6,0.002]
[1758781782817,0.72441715,4013.0,4012.6,0.002]
[1758781783023,2.49197488,4012.9,4012.6,0.002]
[1758781783219,2.51696049,4012.8,4012.6,0.002]
[1758781783427,2.49208762,4012.7,4012.6,0.002]
[1758781783728,0.6995,4012.7,4012.6,0.002]
[1758781783945,0.2495,4012.7,4012.6,0.002]
[1758781784169,0.64029844,4012.7,4012.6,0.002]
[1758781784368,1.09029844,4012.7,4012.6,0.002]
[1758781784962,0.84079844,4012.7,4012.6,0.002]
[1758781785270,1.09029844,4012.7,4012.6,0.002]
[1758781786892,3.58238606,4012.7,4012.6,0.002]
[1758781787065,1.09029844,4012.7,4012.6,0.002]
[1758781787271,0.39079844,4012.7,4012.6,0.002]
[1758781787576,1.09029844,4012.7,4012.6,0.002]
[1758781788259,0.39079844,4012.7,4012.6,0.002]
[1758781788460,0.39079844,4012.7,4012.6,2.49414972]
[1758781788977,0.39079844,4012.7,4012.6,3.06346812]
[1758781789196,0.39079844,4012.7,4012.6,3.77016812]
[1758781789390,0.39079844,4012.7,4012.6,3.20084972]
[1758781789590,0.39079844,4012.7,4012.6,2.74384972]
[1758781789777,0.39079844,4012.7,4012.6,3.22577121]
[1758781790085,0.001,4013.2,4013.1,2.49183922]
[1758781790394,0.001,4013.2,4013.1,6.82283922]
[1758781791281,0.001,4013.2,4013.1,8.00401798]
[1758781791495,0.001,4013.2,4013.1,8.46101798]
[1758781791693,0.001,4013.2,4013.1,3.42331798]
[1758781791904,0.001,4013.2,4013.1,6.82283922]
[1758781792362,0.001,4013.2,4013.1,4.331]
[1758781792794,0.001,4013.2,4013.1,6.82283922]
[1758781793789,0.001,4013.2,4012.8,2.49202488]
[1758781794004,0.001,4013.2,4013.0,2.49188947]
[1758781794272,0.001,4013.2,4013.1,2.49183922]
[1758781794486,0.001,4013.2,4013.1,2.51675761]
[1758781794800,0.001,4013.2,4013.1,3.56802978]
[1758781795221,0.001,4013.2,4013.1,4.37381139]
[1758781795712,0.001,4013.2,4013.1,10.65681139]
[1758781796273,0.001,4013.2,4013.1,4.24981139]
[1758781796475,0.001,4013.2,4013.1,10.65681139]
[1758781798205,0.001,4013.2,4013.1,13.78081139]
[1758781799179,0.001,4013.2,4013.1,3.66711139]
[1758781799410,0.001,4013.2,4013.1,8.89683922]
[1758781799780,0.001,4013.2,4013.1,9.14653922]
[1758781800189,0.001,4013.2,4013.1,9.60353922]
[1758781800692,1e-08,4013.7,4013.6,2.4915288]
[1758781800892,1e-08,4013.7,4013.6,9.84444408]
[1758781801094,1e-08,4013.7,4013.6,12.05983409]
[1758781801496,1e-08,4013.7,4013.6,12.85183409]
[1758781801720,0.001,4015.3,4015.2,2.49053596]
[1758781802020,0.001,4015.3,4015.2,12.68753596]
[1758781802318,0.001,4015.3,4015.2,13.39373596]
[1758781802617,0.001,4015.3,4015.2,7.78517127]
[1758781802782,0.001,4015.3,4015.2,13.71667127]
[1758781802983,0.001,4015.3,4015.2,14.18917127]
[1758781803914,0.001,4015.3,4015.2,13.71667127]
[1758781804092,0.001,4015.3,4015.2,10.48297127]
[1758781804293,0.001,4015.3,4015.2,4.07897127]
[1758781804494,0.001,4015.3,4015.2,10.48097127]
[1758781804694,0.001,4015.3,4015.2,8.40497127]
[1758781804883,0.001,4015.3,4015.2,6.81653596]
[1758781805216,0.001,4015.3,4015.2,4.326]
[1758781805534,0.7021,4015.3,4015.2,4.326]
[1758781805680,0.7021,4015.3,4015.2,6.81653596]
[1758781806104,0.2475,4015.3,4015.2,4.326]
[1758781806309,0.2475,4015.3,4015.2,6.81653596]
[1758781806919,0.001,4015.3,4015.2,6.81653596]
[1758781807119,0.001,4015.3,4015.2,8.45345491]
[1758781807318,0.001,4015.3,4015.2,9.24545491]
[1758781807488,0.001,4015.3,4015.2,12.24545491]
[1758781807684,0.001,4015.3,4015.2,7.12745491]
[1758781807883,0.001,4015.3,4015.2,13.52845491]
[1758781809005,0.001,4015.3,4015.2,11.45245491]
[1758781809212,0.001,4015.3,4015.2,13.52845491]
[1758781809523,0.001,4015.3,4015.2,12.94625491]
[1758781809921,0.001,4015.3,4015.2,6.54525491]
[1758781810125,0.001,4015.3,4015.2,3.54525491]
[1758781810430,0.001,4015.3,4015.2,10.55236026]
[1758781810612,0.001,4015.3,4015.2,10.65145491]
[1758781810811,0.001,4015.3,4015.2,14.44345491]
[1758781811012,0.001,4015.3,4015.2,6.54525491]
[1758781811210,0.001,4015.3,4015.2,12.94525491]
[1758781811400,0.001,4015.3,4015.2,3.54525491]
[1758781811602,0.001,4015.3,4014.5,0.4438]
[1758781811800,0.001,4015.3,4015.2,2.49053596]
[1758781812001,0.001,4015.3,4015.2,3.89544131]
[1758781812203,0.001,4015.3,4015.2,3.87053596]
[1758781812405,0.001,4015.3,4015.2,4.33924131]
[1758781812701,0.001,4015.3,4015.2,8.60103144]
[1758781812904,0.001,4015.3,4015.2,8.57612609]
[1758781813694,0.001,4015.3,4015.2,1.01459013]
[1758781813937,0.7037,4015.3,4015.2,3.076]
[1758781814336,0.7037,4015.3,4014.5,2.076]
[1758781814540,0.7037,4015.3,4015.0,2.49060781]
[1758781814738,0.7027,4015.2,4014.8,2.49078407]
[1758781815038,0.7027,4015.1,4014.2,2.49111308]
[1758781815242,0.7027,4015.1,4014.9,2.49070376]
[1758781815538,0.001,4015.3,4015.2,2.49053596]
[1758781816049,0.7027,4015.2,4015.1,4.323]
[1758781816455,0.7027,4015.2,4014.9,2.49070158]
[1758781816745,0.7027,4015.1,4015.0,4.322]
[1758781816902,0.7027,4015.1,4015.0,6.81266002]
[1758781817557,0.7027,4015.1,4015.0,4.322]
[1758781817739,0.7027,4015.1,4014.9,0.002]
[1758781818039,0.4632,4015.0,4014.9,0.002]
[1758781818436,0.001,4015.3,4015.2,2.49053596]
[1758781818604,0.001,4015.3,4015.2,6.83744131]
[1758781818799,0.001,4015.3,4015.2,6.81253596]
[1758781820634,0.001,4015.3,4015.2,7.05973596]
[1758781820953,0.001,4015.3,4015.2,7.25633596]
[1758781821152,0.001,4015.3,4015.2,8.03827427]
[1758781823785,1e-08,4016.9,4016.8,2.48954391]
[1758781824060,1e-08,4016.9,4016.8,13.20135638]
[1758781824269,0.2395,4018.8,4018.2,2.48867652]
[1758781824482,0.4832,4018.9,4018.2,8.91056328]
[1758781824680,0.02,4018.9,4018.2,12.00967652]
[1758781824843,0.02,4018.9,4018.2,13.49267652]
[1758781825043,0.02,4018.9,4018.2,15.09082029]
[1758781825404,0.02,4018.9,4018.2,15.19059941]
[1758781826378,0.02,4018.9,4018.2,1.82192289]
[1758781826568,0.7037,4018.3,4018.2,2.669]
[1758781826968,0.001,4018.3,4018.2,2.669]
[1758781827135,0.001,4018.3,4018.2,5.18256328]
[1758781827336,0.001,4018.3,4018.2,5.15767652]
[1758781827542,0.001,4018.3,4018.2,10.61282322]
[1758781828781,0.001,4018.3,4018.2,10.16902322]
[1758781829082,0.001,4018.3,4018.2,10.61282322]
[1758781830799,1e-08,4018.9,4018.8,2.48830496]
[1758781830975,1e-08,4018.9,4018.8,11.906188]
[1758781831177,1e-08,4018.9,4018.8,13.32076664]
[1758781832092,1e-08,4018.9,4018.8,13.56796664]
[1758781832602,1e-08,4018.9,4018.8,14.01176664]
[1758781833202,1e-08,4018.9,4018.8,14.80376664]
[1758781834489,1e-08,4018.9,4018.8,46.27651012]
[1758781835906,1e-08,4018.9,4018.8,39.88351012]
[1758781836111,0.00100001,4018.9,4018.8,21.38352535]
[1758781836406,0.00100001,4018.9,4018.8,52.75651012]
[1758781836578,0.00100001,4018.9,4018.8,52.88051012]
[1758781837121,0.001,4019.6,4019.5,2.48787162]
[1758781837323,0.001,4019.6,4019.5,10.17665878]
[1758781837523,0.001,4019.6,4019.5,10.96865878]
[1758781838319,0.001,4019.6,4019.5,13.04265878]
[1758781838520,0.001,4019.6,4019.5,13.06265878]
[1758781838914,1e-08,4019.9,4019.8,2.48768595]
[1758781839127,1e-08,4019.9,4019.8,8.98907825]
[1758781839324,1e-08,4019.9,4019.8,9.0882014]
[1758781839536,1e-08,4019.9,4019.8,13.1274014]
[1758781839688,1e-08,4019.9,4019.8,13.5712014]
[1758781840326,1e-08,4019.9,4019.8,13.1274014]
[1758781841024,1e-08,4019.9,4019.8,14.9532014]
[1758781841392,1e-08,4019.9,4019.8,15.05293325]
[1758781841591,1e-08,4019.9,4019.8,12.97893325]
[1758781841825,1e-08,4019.9,4019.8,15.05193325]
[1758781842327,1e-08,4019.9,4019.8,8.66393325]
[1758781842527,1e-08,4019.9,4019.8,15.05193325]
[1758781843030,1e-08,4019.9,4019.8,15.73933325]
[1758781843331,1e-08,4019.9,4019.8,8.66393325]
[1758781843496,1e-08,4019.9,4019.8,15.05093325]
[1758781844195,1e-08,4019.9,4019.8,8.66393325]
[1758781844531,1e-08,4019.9,4019.8,15.05093325]
[1758781845215,1e-08,4019.9,4019.8,8.66393325]
[1758781845416,1e-08,4019.9,4019.8,15.05093325]
[1758781846294,1e-08,4019.9,4019.8,8.66393325]
[1758781846595,0.65890001,4019.9,4019.8,14.1582014]
[1758781847018,0.65890001,4019.9,4019.8,2.61168595]
[1758781847221,0.65890001,4019.9,4019.8,8.99768595]
[1758781847633,0.65890001,4019.9,4019.8,2.61168595]
[1758781847816,0.65890001,4019.9,4019.8,8.99768595]
[1758781848419,0.65890001,4019.9,4019.8,2.61168595]
[1758781848624,0.65890001,4019.9,4019.7,2.48773396]
[1758781848810,1e-08,4019.9,4019.8,6.80068595]
[1758781849009,1e-08,4019.9,4019.8,4.313]
[1758781849407,0.65890001,4019.9,4019.8,4.313]
[1758781849619,0.65890001,4019.9,4019.8,6.80068595]
[1758781850233,0.65890001,4019.9,4019.8,4.313]
[1758781851137,0.65890001,4019.9,4019.8,6.80068595]
[1758781851332,0.65890001,4019.9,4019.8,4.313]
[1758781851937,0.65890001,4019.9,4019.8,6.80068595]
[1758781852240,0.65890001,4019.9,4019.8,4.313]
[1758781852451,0.65890001,4019.9,4019.1,0.124]
[1758781852627,0.65890001,4019.9,4019.6,2.073]
[1758781852946,0.6589,4019.8,4019.7,6.80074519]
[1758781853912,0.6589,4019.8,4019.7,4.312]
[1758781854764,3.53671416,4019.8,4019.7,4.312]
[1758781854937,1.04902821,4019.8,4019.7,4.312]
[1758781855503,1.04902821,4019.8,4019.6,4.312]
[1758781855658,0.6589,4019.7,4019.6,4.312]
[1758781856241,0.6589,4019.7,4018.9,2.073]
[1758781856443,3.14674948,4019.6,4018.8,2.4883019]
[1758781856756,0.6589,4019.5,4019.0,4.312]
[1758781857047,0.62022821,4019.8,4019.1,0.02488119]
[1758781857212,0.62022821,4019.8,4019.3,2.48798022]
[1758781857552,0.62022821,4019.8,4018.8,4.68530118]
[1758781857553,0.6589,4019.7,4019.6,2.48779927]
[1758781857707,0.6589,4019.7,4019.6,6.82467736]
[1758781857908,0.6589,4019.7,4019.6,6.79979927]
[1758781858113,0.39012821,4019.8,4019.7,2.48774784]
[1758781858522,1e-08,4019.9,4019.8,2.48768595]
[1758781858745,1e-08,4019.9,4019.8,6.8245628]
[1758781858913,0.23010001,4019.9,4019.8,6.79968595]
[1758781859110,1e-08,4019.9,4019.8,6.79968595]
[1758781860157,1e-08,4019.9,4019.8,7.41707497]
[1758781860365,1e-08,4019.9,4019.8,8.10447497]
[1758781860663,1e-08,4019.9,4019.8,7.41707497]
[1758781862858,0.69470001,4019.9,4019.5,0.124]
[1758781863088,0.6947,4019.8,4019.6,4.425]
[1758781863249,1e-08,4019.9,4019.8,2.48768595]
[1758781863448,1e-08,4019.9,4019.8,7.75362235]
[1758781863688,1e-08,4019.9,4019.8,8.45252235]
[1758781864546,1e-08,4019.9,4019.8,7.75362235]
[1758781865990,1e-08,4019.9,4019.8,7.99832235]
[1758781866202,1e-08,4019.9,4019.8,8.45252235]
[1758781866495,1e-08,4019.9,4019.8,12.24452235]
[1758781867275,1e-08,4019.9,4019.8,7.93352235]
[1758781867804,1e-08,4019.9,4019.8,20.34232235]
[1758781867966,1e-08,4019.9,4019.8,20.79652235]
[1758781869618,1e-08,4019.9,4019.8,7.47932235]
[1758781869768,1e-08,4019.9,4019.8,14.31652235]
[1758781870794,0.00100001,4019.9,4019.8,14.31652235]
[1758781871679,0.00100001,4019.9,4019.8,12.24352235]
[1758781872003,0.00100001,4019.9,4019.8,14.31652235]
[1758781873891,0.001,4020.5,4020.4,3.27931469]
[1758781874096,0.001,4020.5,4020.4,11.18985872]
[1758781874334,0.001,4020.5,4020.4,11.28898558]
[1758781874810,0.7151,4020.5,4020.4,6.18798558]
[1758781875137,0.7151,4020.5,4020.4,11.99331469]
[1758781875539,0.7151,4020.5,4020.4,2.61131469]
[1758781875938,0.7151,4020.5,4020.4,4.309]
[1758781876834,0.7151,4020.5,4020.4,6.79631469]
[1758781877035,0.7151,4020.5,4020.4,4.309]
[1758781877203,0.7151,4020.5,4020.4,6.79531469]
[1758781878738,0.001,4020.5,4020.4,6.79531469]
[1758781878943,0.001,4020.5,4020.4,7.93088552]
[1758781879841,0.001,4020.5,4020.4,12.39668552]
[1758781880044,0.021,4020.9,4020.4,12.39668552]
[1758781880045,1e-08,4020.9,4020.8,2.48706725]
[1758781880244,1e-08,4020.9,4020.8,6.81993792]
[1758781880548,1e-08,4020.9,4020.8,12.25895589]
[1758781880943,1e-08,4020.9,4020.8,11.82285589]
[1758781881705,1e-08,4020.9,4020.8,11.58515589]
[1758781882411,1e-08,4020.9,4020.8,7.27715589]
[1758781882613,1e-08,4020.9,4020.8,14.61473321]
[1758781882840,1e-08,4020.9,4020.8,14.33195589]
[1758781883047,1e-08,4020.9,4020.8,7.95095589]
[1758781883354,1e-08,4020.9,4020.8,20.80995589]
[1758781883848,1e-08,4020.9,4020.8,6.48515589]
[1758781884049,0.71410001,4020.9,4020.6,2.48713329]
[1758781884251,0.7141,4020.8,4020.7,4.307]
[1758781884622,0.2455,4020.8,4020.7,4.307]
[1758781884825,0.7141,4020.8,4020.3,2.48735498]
[1758781885029,1e-08,4020.9,4020.5,2.48725282]
[1758781885222,1e-08,4020.9,4020.8,2.48706725]
[1758781885574,1e-08,4020.9,4020.7,2.48711784]
[1758781885847,1e-08,4020.9,4020.8,4.307]
[1758781886146,1e-08,4020.9,4020.8,6.79406725]
[1758781886349,1e-08,4020.9,4020.8,7.3412437]
[1758781886535,1e-08,4020.9,4020.8,10.3412437]
[1758781887350,1e-08,4020.9,4020.8,10.4652437]
[1758781888113,1e-08,4020.9,4020.8,5.61106725]
[1758781888114,0.71410001,4020.9,4020.8,5.61106725]
[1758781888353,0.71410001,4020.9,4020.8,2.48706725]
[1758781888518,0.71410001,4020.9,4020.8,6.79406725]
[1758781889337,0.71510001,4020.9,4020.8,6.79406725]
[1758781890274,1.10510397,4020.9,4020.8,6.79406725]
[1758781890474,1.10510397,4020.9,4020.8,4.307]
[1758781890774,0.71510001,4020.9,4020.5,2.48723583]
[1758781891078,0.7141,4020.8,4020.6,4.306]
[1758781891371,0.7141,4020.7,4020.6,6.79319096]
[1758781891574,0.7141,4020.7,4020.6,2.48719096]
[1758781891875,0.7141,4020.7,4020.6,6.79319096]
[1758781892376,0.7141,4020.7,4020.1,0.124]
[1758781892552,0.7141,4020.7,4020.5,2.48723328]
[1758781892758,0.00100001,4020.9,4020.6,3.99514134]
[1758781893112,0.00100001,4020.9,4020.1,2.073]
[1758781893113,0.00100001,4020.9,4020.7,4.306]
[1758781893264,0.00100001,4020.9,4020.0,0.002]
[1758781893265,0.7141,4020.8,4020.0,0.002]
[1758781893450,0.7141,4020.8,4020.1,4.306]
[1758781893654,0.7141,4020.7,4020.3,2.48732243]
[1758781893844,0.7141,4020.6,4020.4,4.306]
[1758781894179,0.7141,4020.5,4020.4,4.306]
[1758781895156,0.7141,4020.5,4020.4,6.79331469]
[1758781895667,1.10413635,4020.5,4020.4,4.306]
[1758781896181,1.10413635,4020.5,4020.4,6.79331469]
[1758781898561,0.39003635,4020.5,4020.4,6.79331469]
[1758781898889,1.10413635,4020.5,4020.4,4.306]
[1758781899088,1.10413635,4020.5,4020.0,0.002]
[1758781899089,2.48731469,4020.4,4020.0,0.002]
[1758781899258,0.02491715,4020.3,4020.1,4.305]
[1758781899458,0.7141,4020.2,4020.0,4.307]
[1758781899653,0.7141,4020.1,4020.0,4.307]
[1758781900060,38.19971738,4020.1,4020.0,0.002]
[1758781900283,40.68721769,4020.1,4020.0,0.002]
[1758781900871,43.68721769,4020.1,4020.0,0.002]
[1758781901071,44.47921769,4020.1,4020.0,0.002]
[1758781901287,6.20160031,4020.1,4020.0,0.002]
[1758781901491,41.19971738,4020.1,4020.0,0.002]
[1758781901687,43.68721769,4020.1,4020.0,0.002]
[1758781903589,44.0773498,4020.1,4020.0,0.002]
[1758781904094,48.3823498,4020.1,4020.0,0.002]
[1758781906709,48.3823498,4020.1,4020.0,0.002]
[1758781907392,0.39013211,4020.1,4020.0,0.002]
[1758781907774,0.39013211,4020.1,4020.0,2.5144378]
[1758781908126,0.39013211,4020.1,4020.0,2.7585378]
[1758781908910,0.39013211,4020.1,4020.0,4.23153928]
[1758781909314,0.00100001,4020.9,4020.8,2.48706725]
[1758781909606,0.39102888,4020.9,4020.8,2.48706725]
[1758781910581,0.39102888,4020.9,4020.2,0.2441]
[1758781910780,0.39102888,4020.9,4020.1,4.305]
[1758781910781,37.48561738,4020.7,4020.1,4.305]
[1758781910981,4.69602888,4020.9,4020.1,4.305]
[1758781911182,0.00100001,4020.9,4020.8,2.48706725]
[1758781911792,0.00100001,4020.9,4020.8,2.73116725]
[1758781912009,0.00100001,4020.9,4020.8,3.20196725]
[1758781913015,0.00100001,4020.9,4020.8,2.48706725]
[1758781913604,0.00100001,4020.9,4020.8,3.20196725]
[1758781913802,0.00100001,4020.9,4020.8,4.41107006]
[1758781914311,0.00100001,4020.9,4020.8,3.94027006]
[1758781914546,0.00100001,4020.9,4020.8,3.69617006]
[1758781917206,0.39102431,4020.9,4020.8,3.69617006]
[1758781918253,0.39102431,4020.9,4020.8,4.41107006]
[1758781918550,0.00100001,4020.9,4020.8,4.41107006]
[1758781918948,0.00100001,4020.9,4020.8,4.43594073]
[1758781919311,0.00100001,4020.9,4020.8,4.10914073]
[1758781919533,0.00100001,4020.9,4020.8,8.32707006]
[1758781921839,0.00100001,4020.9,4020.8,45.81268744]
[1758781922140,0.00100001,4020.9,4020.8,58.66568744]
[1758781922357,0.00100001,4020.9,4020.8,8.32707006]
[1758781922559,0.00100001,4020.9,4020.8,14.70207006]
[1758781924550,0.00100001,4020.9,4020.8,8.32707006]
[1758781924738,0.00100001,4020.9,4020.8,7.85627006]
[1758781924941,0.00100001,4020.9,4020.8,13.19417006]
[1758781925449,0.00100001,4020.9,4020.8,5.76917006]
[1758781925666,0.00100001,4020.9,4020.8,8.86106725]
[1758781925879,0.23610001,4020.9,4020.8,8.86106725]
[1758781926076,0.68730001,4020.9,4020.8,2.48706725]
[1758781926245,0.68730001,4020.9,4020.8,6.78806725]
[1758781926445,0.00100001,4020.9,4020.8,6.78806725]
[1758781926642,0.68730001,4020.9,4020.8,6.78806725]
[1758781927357,0.68730001,4020.9,4020.8,4.301]
[1758781927541,0.68730001,4020.9,4020.8,6.78806725]
[1758781929048,0.68730001,4020.9,4020.8,4.301]
[1758781929247,0.68730001,4020.9,4020.7,0.02487129]
[1758781929446,0.68730001,4020.9,4020.7,2.4871291]
[1758781929447,0.4512,4020.8,4020.7,2.4871291]
[1758781929646,0.6863,4020.8,4020.7,6.7871291]
[1758781929872,0.6863,4020.8,4020.7,4.3]
[1758781930382,0.6863,4020.8,4020.7,6.7871291]
[1758781930950,0.6863,4020.8,4020.7,4.3]
[1758781931258,0.6863,4020.8,4020.6,2.48717752]
[1758781931587,0.2269,4020.7,4020.6,2.48719096]
[1758781931790,0.00100001,4020.9,4020.8,2.48706725]
[1758781932082,0.00100001,4020.9,4020.8,6.78706725]
[1758781933244,0.00100001,4020.9,4020.8,7.73871307]
[1758781933448,0.00100001,4020.9,4020.8,11.43341307]
[1758781934556,0.00100001,4020.9,4020.8,12.22541307]
[1758781934746,0.00100001,4020.9,4020.8,12.24541307]
[1758781935568,0.00100001,4020.9,4020.8,12.36941307]
[1758781936750,0.00100001,4020.9,4020.8,13.74671307]
[1758781936947,0.00100001,4020.9,4020.8,14.44141307]
[1758781939369,0.00100001,4020.9,4020.8,14.44341307]
[1758781940394,0.001,4021.4,4021.3,3.792]
[1758781940593,0.001,4021.4,4021.3,11.34953998]
[1758781940756,0.001,4021.4,4021.3,11.59173998]
[1758781941152,0.001,4021.4,4021.3,12.04423998]
[1758781941378,0.001,4022.3,4022.2,2.48620158]
[1758781941578,0.001,4022.3,4022.2,8.85620158]
[1758781941789,0.001,4022.3,4022.2,13.18391989]
[1758781943157,0.001,4022.3,4022.2,14.21811989]
[1758781943486,0.001,4022.3,4022.2,14.67061989]
[1758781945182,0.001,4022.3,4022.2,13.97591989]
[1758781945491,0.6591,4022.3,4022.2,13.18191989]
[1758781945790,0.6591,4022.3,4022.2,11.97820158]
[1758781946288,0.6591,4022.3,4022.2,6.368]
[1758781946488,0.6591,4022.3,4022.2,8.85420158]
[1758781947792,0.6591,4022.3,4021.9,2.48638703]
[1758781947998,0.6581,4022.2,4022.0,4.296]
[1758781948161,0.6581,4022.1,4021.5,2.072]
[1758781948498,0.6581,4022.0,4021.6,6.78255399]
[1758781948700,0.6581,4021.9,4020.8,2.074]
[1758781948998,0.6581,4021.8,4021.5,2.48658606]
[1758781949195,0.6581,4021.7,4021.6,4.295]
[1758781949900,0.6581,4021.7,4020.8,0.002]
[1758781950080,0.6581,4021.7,4021.4,2.48668177]
[1758781950278,0.6581,4021.6,4021.5,6.80648729]
[1758781950479,0.6581,4021.6,4021.5,6.78162095]
[1758781951197,0.6581,4021.6,4021.5,4.295]
[1758781951793,0.6581,4021.6,4021.0,2.48691128]
[1758781952069,0.6581,4021.5,4020.9,2.48700245]
[1758781952270,0.6581,4021.5,4020.8,0.002]
[1758781952271,0.68301715,4021.4,4020.8,0.002]
[1758781952470,1.04811307,4021.4,4020.9,4.295]
[1758781952800,0.6581,4021.3,4021.1,2.48683383]
[1758781952998,0.2269,4021.2,4021.1,6.78183383]
[1758781953472,0.6581,4021.2,4021.1,4.295]
[1758781954674,0.6581,4021.2,4021.1,6.78188169]
[1758781955675,0.39001307,4021.4,4021.3,2.48675801]
[1758781955870,0.61691307,4021.4,4021.3,6.78175801]
[1758781956276,1.04811307,4021.4,4021.3,6.78175801]
[1758781956596,0.39001307,4021.4,4021.3,6.78175801]
[1758781956802,0.001,4021.7,4021.3,6.78175801]
[1758781956803,0.001,4021.7,4021.6,2.4865725]
[1758781957376,0.3909978,4021.7,4021.6,2.4865725]
[1758781958318,0.3909978,4021.7,4021.6,2.51143822]
[1758781959800,0.3909978,4021.7,4021.6,3.41588162]
[1758781960100,0.001,4021.7,4021.6,4.13544734]
[1758781960617,0.001,4021.7,4021.6,2.51143822]
[1758781960911,0.6753,4021.7,4021.6,4.294]
[1758781961693,0.6753,4021.7,4021.6,6.7805725]
[1758781961893,0.6753,4021.7,4021.6,4.294]
[1758781962317,0.6753,4021.7,4021.6,6.7805725]
[1758781962704,0.2402,4021.7,4021.6,6.7805725]
[1758781963526,0.2402,4021.7,4020.9,2.072]
[1758781963527,0.6753,4021.7,4020.9,2.072]
[1758781963682,0.6743,4021.6,4021.3,2.48675281]
[1758781963877,0.6743,4021.5,4021.4,4.294]
[1758781964112,0.6743,4021.5,4020.9,2.48699898]
[1758781964274,2.48661446,4021.6,4021.0,4.294]
[1758781964496,0.6743,4021.4,4021.0,4.294]
[1758781964905,0.6387982,4021.5,4021.0,4.294]
[1758781965082,0.6743,4021.3,4020.8,0.002]
[1758781965287,2.48700539,4020.9,4020.8,0.002]
[1758781965504,2.51192254,4020.9,4020.8,0.002]
[1758781965708,3.18622254,4020.9,4020.8,0.002]
[1758781966087,3.5763522,4020.9,4020.8,0.002]
[1758781966981,7.3683522,4020.9,4020.8,0.002]
[1758781967191,7.34343505,4020.9,4020.8,0.002]
[1758781969109,4.85642966,4020.9,4020.8,0.002]
[1758781969326,11.22242966,4020.9,4020.8,0.002]
[1758781969541,3.62932966,4020.9,4020.8,0.002]
[1758781969814,0.2392,4020.9,4020.8,0.002]